bitfinex/quotes_ETHUSD_20260228
["timestamp","ask_amount","ask_price","bid_price","bid_amount"]
[1772316418182,0.49878334,1963.5,1962.6,0.45594642]
[1772316418390,1.194,1963.5,1962.6,0.45594642]
[1772316418889,0.49878334,1963.4,1962.6,0.45594642]
[1772316419964,1.77213137,1963.4,1962.7,1.27375554]
[1772316420690,2.31583562,1963.3,1962.5,0.001]
[1772316420993,1.194,1963.2,1962.6,0.45494642]
[1772316421359,1.193,1963.3,1962.6,0.45494642]
[1772316422300,1.193,1963.3,1962.7,1.27375554]
[1772316422473,0.002,1963.8,1962.8,0.45494642]
[1772316422674,0.002,1963.8,1963.0,0.45494642]
[1772316423402,0.002,1963.8,1963.2,0.45494642]
[1772316424203,0.50078334,1963.8,1962.9,0.45494642]
[1772316424404,0.49878334,1963.7,1963.0,1.27356087]
[1772316424608,1.27509084,1963.8,1963.0,1.27356087]
[1772316424609,0.002,1963.8,1963.1,0.45494642]
[1772316426911,0.002,1963.8,1963.2,1.27343113]
[1772316427097,0.002,1963.8,1963.2,1.72837755]
[1772316428911,0.002,1963.7,1963.2,1.72837755]
[1772316430212,0.002,1963.7,1963.3,0.45494642]
[1772316430391,0.50078334,1963.7,1963.2,1.27343113]
[1772316430715,0.50078334,1963.7,1963.1,5.54867095]
[1772316431012,1.69078334,1963.7,1963.2,1.27343113]
[1772316432018,1.192,1963.7,1963.2,1.72837755]
[1772316432839,0.002,1963.7,1963.3,0.45494642]
[1772316434119,0.002,1963.7,1963.4,1.27330141]
[1772316434812,0.002,1963.7,1963.4,1.72824783]
[1772316435126,0.002,1963.7,1963.5,0.45494642]
[1772316435339,0.002,1963.9,1963.5,0.45494642]
[1772316435987,0.002,1963.9,1963.4,1.27330141]
[1772316435988,0.002,1964.0,1963.6,0.45494642]
[1772316436193,0.002,1964.0,1963.8,0.45494642]
[1772316436392,0.002,1964.0,1963.6,1.76953473]
[1772316440225,0.002,1964.0,1963.7,0.49641348]
[1772316440537,0.002,1964.0,1963.8,1.27304206]
[1772316441628,0.45566142,1964.0,1963.3,1.76973771]
[1772316442707,0.002,1963.9,1963.3,1.76973771]
[1772316443622,0.002,1963.9,1963.4,0.49641348]
[1772316444619,0.002,1963.9,1963.4,1.76970746]
[1772316445617,0.002,1963.9,1963.5,0.49641348]
[1772316445800,0.002,1964.0,1963.6,0.49641348]
[1772316446001,0.002,1964.2,1963.7,0.49641348]
[1772316447016,0.002,1964.2,1963.8,1.76945554]
[1772316447399,0.002,1964.2,1963.8,0.49641348]
[1772316447610,0.002,1964.2,1963.7,1.27306255]
[1772316447921,0.002,1964.2,1963.7,1.76947603]
[1772316449428,0.45566142,1964.2,1963.1,0.49641348]
[1772316449615,0.45566142,1964.2,1963.3,0.49641348]
[1772316450997,0.002,1964.2,1963.6,0.49641348]
[1772316453922,0.002,1964.2,1963.7,1.76952037]
[1772316454132,0.002,1964.2,1963.8,0.49641348]
[1772316455205,0.002,1964.1,1963.8,0.49641348]
[1772316455938,0.002,1964.1,1963.9,1.27297723]
[1772316456442,0.002,1964.3,1964.0,0.49641348]
[1772316458445,0.002,1964.3,1963.8,0.49641348]
[1772316458623,0.002,1964.3,1963.9,0.49641348]
[1772316460442,0.002,1964.3,1963.8,0.49641348]
[1772316462732,0.002,1964.3,1963.9,1.76939071]
[1772316463528,0.002,1964.3,1963.8,1.27300475]
[1772316463751,0.45366142,1964.2,1963.7,0.001]
[1772316464533,0.45366142,1964.2,1963.7,1.27410177]
[1772316464733,1.72648423,1964.2,1963.7,0.001]
[1772316467160,0.45421646,1964.1,1963.7,0.001]
[1772316467328,0.45421646,1964.1,1963.4,0.001]
[1772316468655,0.45421646,1964.1,1963.7,0.001]
[1772316468838,0.45621646,1964.1,1963.7,0.001]
[1772316469231,1.72712888,1964.0,1963.7,0.001]
[1772316469832,0.002,1964.1,1963.7,0.001]
[1772316470460,1.27485052,1964.1,1963.7,0.001]
[1772316470850,0.002,1964.1,1963.7,0.48730047]
[1772316471533,0.002,1964.1,1963.8,1.27304206]
[1772316471729,0.002,1964.1,1963.8,1.75934253]
[1772316472743,0.45621646,1964.1,1963.7,0.001]
[1772316472935,0.002,1964.1,1963.7,1.2740946]
[1772316473777,0.45621646,1964.1,1963.7,0.001]
[1772316475954,1.72911447,1964.1,1963.7,0.001]
[1772316477393,0.002,1964.1,1963.7,0.001]
[1772316477541,0.002,1964.1,1963.7,0.48730047]
[1772316477867,0.002,1964.1,1963.8,1.27304206]
[1772316478068,0.002,1964.1,1963.8,1.75934253]
[1772316479040,0.002,1964.1,1963.7,1.27410274]
[1772316481168,0.002,1964.1,1963.7,1.76040321]
[1772316482875,0.002,1964.1,1963.8,0.48630047]
[1772316483451,0.002,1964.1,1963.5,0.001]
[1772316483452,0.45621646,1964.1,1963.5,0.001]
[1772316483766,0.45621646,1964.1,1963.4,0.001]
[1772316483767,0.45421646,1963.9,1963.0,1.75982053]
[1772316483945,0.45421646,1963.7,1963.1,1.27349305]
[1772316484151,0.45421646,1963.7,1963.1,1.27348871]
[1772316484868,1.72737745,1963.7,1963.1,1.27348871]
[1772316485877,1.72737745,1963.7,1963.0,1.75981476]
[1772316488078,1.72722305,1963.9,1963.2,0.48630047]
[1772316488286,1.183,1963.8,1963.3,0.48730047]
[1772316489576,0.45421646,1963.9,1963.3,0.48730047]
[1772316489757,0.002,1964.1,1963.5,0.48630047]
[1772316492684,0.002,1964.1,1963.6,1.75947219]
[1772316493494,0.002,1964.0,1963.7,0.48630047]
[1772316494771,0.002,1964.0,1963.5,1.75950148]
[1772316495381,0.45621646,1964.0,1963.4,1.27426232]
[1772316496003,0.45621646,1964.0,1963.5,0.48630047]
[1772316497714,0.45621646,1964.0,1963.5,1.75949069]
[1772316499096,1.7291386,1964.0,1963.5,1.75949069]
[1772316499300,0.46094208,1963.9,1963.4,0.001]
[1772316499600,0.46094208,1963.7,1963.4,0.001]
[1772316499804,1.73407801,1963.7,1963.4,0.001]
[1772316500296,0.46094208,1963.6,1963.4,0.001]
[1772316501975,1.73412058,1963.6,1963.4,0.001]
[1772316502389,1.73411773,1963.6,1963.4,0.001]
[1772316503894,5.09243905,1963.7,1963.1,0.001]
[1772316503895,0.46094208,1963.5,1963.1,0.001]
[1772316505503,0.46094208,1963.5,1963.2,0.001]
[1772316505903,1.27330141,1963.4,1963.2,0.001]
[1772316506376,2.45830141,1963.4,1963.2,0.001]
[1772316506579,0.46094208,1963.3,1962.9,0.001]
[1772316508692,1.73432898,1963.3,1962.9,0.001]
[1772316508891,0.46094208,1963.3,1962.9,0.001]
[1772316509909,1.185,1963.4,1962.9,0.46832779]
[1772316510286,2.91925213,1963.4,1962.9,0.46832779]
[1772316510683,2.91925213,1963.4,1962.9,1.74192963]
[1772316510887,1.64594208,1963.4,1962.9,1.74192963]
[1772316511082,2.91924512,1963.4,1962.9,1.74192963]
[1772316513004,1.64594208,1963.4,1962.9,1.74192963]
[1772316513213,2.91924924,1963.4,1962.9,1.74192963]
[1772316514113,0.46094208,1963.4,1962.9,1.74192963]
[1772316514311,1.189,1963.3,1962.9,1.74192963]
[1772316515620,2.92331398,1963.3,1962.9,0.46832779]
[1772316515919,2.92331398,1963.3,1962.9,0.001]
[1772316517410,0.46094208,1963.1,1962.5,0.001]
[1772316518105,2.4643719,1963.3,1962.5,0.001]
[1772316518106,1.65194208,1963.0,1962.5,0.001]
[1772316518582,0.46094208,1962.9,1962.5,0.001]
[1772316518985,1.73463097,1962.9,1962.5,0.001]
[1772316519810,0.46094208,1962.9,1962.5,0.001]
[1772316520010,1.73457043,1962.9,1962.5,0.001]
[1772316521014,1.192,1963.2,1962.7,0.46732779]
[1772316522129,2.92639612,1963.2,1962.7,0.46732779]
[1772316524938,0.48237689,1963.1,1962.5,0.001]
[1772316525434,1.27356087,1963.0,1962.5,0.46618964]
[1772316525934,1.75593776,1963.0,1962.5,0.46618964]
[1772316526533,1.27354544,1963.1,1962.5,0.46618964]
[1772316526697,1.194,1963.0,1962.5,0.46618964]
[1772316527096,1.194,1963.1,1962.5,0.46618964]
[1772316527293,0.002,1963.3,1962.6,1.27382044]
[1772316527500,1.194,1963.2,1962.7,0.46722293]
[1772316528496,1.194,1963.2,1962.6,1.27382044]
[1772316528497,0.4927563,1963.1,1962.5,1.74206207]
[1772316528933,1.194,1963.2,1962.6,0.46722293]
[1772316529531,2.96023595,1963.2,1962.6,1.74100375]
[1772316529902,1.194,1963.2,1962.7,0.46722293]
[1772316530128,1.27540631,1963.3,1962.7,0.46722293]
[1772316530326,1.194,1963.2,1962.7,0.46722293]
[1772316530553,1.6867563,1963.2,1962.6,0.46822293]
[1772316530864,0.4927563,1963.1,1962.6,0.46822293]
[1772316531054,0.4927563,1963.1,1962.6,1.74203868]
[1772316531255,0.4927563,1963.1,1962.6,0.46822293]
[1772316531960,1.76625592,1963.1,1962.6,1.74202701]
[1772316532155,0.4927563,1963.1,1962.6,1.74202701]
[1772316532862,1.194,1963.2,1962.7,0.46722293]
[1772316533960,0.002,1963.3,1962.7,0.46722293]
[1772316534165,0.002,1963.3,1962.9,0.46722293]
[1772316536342,0.002,1963.3,1962.9,1.74082683]
[1772316536662,0.4947563,1963.3,1962.7,0.46722293]
[1772316536967,0.4947563,1963.3,1962.7,1.74097602]
[1772316537169,0.4947563,1963.3,1962.8,0.46722293]
[1772316537340,0.002,1963.3,1962.8,0.46722293]
[1772316538239,0.002,1963.3,1962.9,1.27362575]
[1772316538442,0.002,1963.3,1963.0,0.46722293]
[1772316540268,1.27536627,1963.3,1962.8,1.74091235]
[1772316540472,0.4947563,1963.3,1962.8,1.74091235]
[1772316541176,0.002,1963.2,1962.8,1.74091235]
[1772316541345,0.002,1963.2,1962.7,0.46722293]
[1772316541789,0.002,1963.4,1962.9,0.46722293]
[1772316542154,0.002,1963.4,1963.1,0.46722293]
[1772316542566,0.002,1963.4,1963.3,0.46722293]
[1772316543060,0.002,1963.6,1963.3,0.46722293]
[1772316544870,0.002,1963.9,1963.5,0.46722293]
[1772316546680,1.27304206,1963.8,1963.3,0.46722293]
[1772316546868,0.4927563,1963.7,1963.1,1.74066642]
[1772316547276,0.4927563,1963.7,1962.9,3.14480717]
[1772316547782,0.4927563,1963.7,1963.0,0.46722293]
[1772316549874,0.4927563,1963.7,1963.1,0.46722293]
[1772316550047,1.76587692,1963.7,1963.1,0.46722293]
[1772316550247,0.4927563,1963.6,1963.1,0.46722293]
[1772316551870,1.6827563,1963.8,1963.2,1.27343113]
[1772316552177,1.6827563,1963.8,1963.1,1.74066889]
[1772316552178,0.4927563,1963.7,1963.1,1.74066889]
[1772316552847,0.4927563,1963.7,1963.2,0.46722293]
[1772316553172,0.4927563,1963.7,1963.0,0.46722293]
[1772316553376,0.4927563,1963.7,1963.0,1.7407835]
[1772316553872,1.76592802,1963.6,1963.0,1.7407835]
[1772316554074,1.76592802,1963.6,1963.0,1.7417835]
[1772316554374,1.76792802,1963.6,1963.0,1.7417835]
[1772316555673,0.4927563,1963.5,1963.0,0.001]
[1772316556395,0.49415559,1963.3,1963.0,0.001]
[1772316556672,0.49415559,1963.5,1963.0,0.47136971]
[1772316556876,0.002,1963.6,1963.0,0.47136971]
[1772316557053,0.002,1963.6,1963.1,0.47036971]
[1772316557859,0.002,1963.6,1963.2,0.47036971]
[1772316559380,0.002,1963.6,1963.4,0.47036971]
[1772316560184,0.002,1963.7,1963.4,0.47036971]
[1772316560875,0.002,1963.9,1963.6,0.47036971]
[1772316561584,0.002,1963.9,1963.8,0.47036971]
[1772316561757,0.002,1963.9,1963.6,0.47036971]
[1772316561957,0.002,1963.9,1963.6,1.74353922]
[1772316562366,0.002,1963.9,1963.7,0.47036971]
[1772316563787,0.002,1963.9,1963.8,1.27304206]
[1772316564306,0.002,1963.9,1963.7,1.74342614]
[1772316564979,0.002,1963.9,1963.8,0.47036971]
[1772316566184,0.002,1964.2,1963.9,0.47036971]
[1772316566386,0.002,1964.4,1963.9,0.47036971]
[1772316567281,0.002,1964.4,1964.1,0.47036971]
[1772316568087,0.002,1964.4,1964.2,1.27278281]
[1772316568395,0.002,1964.4,1964.2,1.74315252]
[1772316570195,0.002,1964.4,1964.3,0.47036971]
[1772316571191,0.002,1964.4,1964.1,1.27279893]
[1772316571580,0.002,1964.4,1964.0,1.74323571]
[1772316571780,0.49615559,1964.4,1963.8,0.47036971]
[1772316572384,1.76887142,1964.4,1963.8,1.74339837]
[1772316573800,0.49615559,1964.4,1963.8,1.74339837]
[1772316573999,0.002,1964.4,1963.9,0.47036971]
[1772316574503,0.002,1964.4,1964.0,1.27291242]
[1772316574676,0.49615559,1964.4,1964.0,1.27291242]
[1772316575103,0.49615559,1964.4,1963.7,0.47036971]
[1772316575278,0.49615559,1964.4,1963.5,0.47036971]
[1772316576005,1.185,1964.4,1963.5,0.47036971]
[1772316576204,0.49415559,1964.3,1963.5,0.47036971]
[1772316576902,0.49415559,1964.3,1963.7,0.47036971]
[1772316577200,1.76687744,1964.3,1963.7,0.47036971]
[1772316579107,0.49415559,1964.2,1963.6,0.001]
[1772316579606,0.49415559,1964.2,1963.6,0.47136971]
[1772316581380,0.49415559,1964.1,1963.6,1.74448657]
[1772316582594,0.49415559,1964.1,1963.7,0.47036971]
[1772316582915,0.002,1964.3,1963.7,0.47036971]
[1772316583410,0.002,1964.3,1963.9,0.47036971]
[1772316585297,0.002,1964.3,1964.0,1.72929935]
[1772316586288,0.002,1964.3,1964.1,0.45638693]
[1772316587318,0.002,1964.3,1963.6,0.001]
[1772316587319,0.460076,1964.2,1963.6,1.76700447]
[1772316587490,0.460076,1964.2,1963.7,0.49286185]
[1772316587917,0.002,1964.3,1963.9,0.49286185]
[1772316589502,0.002,1964.3,1964.0,1.27291242]
[1772316592498,0.002,1964.4,1964.0,1.76577427]
[1772316592699,0.002,1964.4,1963.9,5.09284878]
[1772316592700,0.460076,1964.3,1963.9,0.001]
[1772316592903,0.460076,1964.3,1963.9,1.27397684]
[1772316593106,0.460076,1964.3,1963.9,0.001]
[1772316594103,0.460076,1964.2,1963.9,0.001]
[1772316596406,2.45366311,1964.4,1964.0,0.49286185]
[1772316596407,0.002,1964.4,1964.0,0.49286185]
[1772316596607,0.462076,1964.4,1964.0,0.49286185]
[1772316596816,0.462076,1964.4,1963.9,0.001]
[1772316597232,1.27465479,1964.4,1963.9,0.001]
[1772316597413,0.460076,1964.3,1963.9,0.001]
[1772316600539,0.460076,1964.1,1963.6,1.27416327]
[1772316600740,0.462076,1964.4,1963.8,0.49286185]
[1772316601310,0.462076,1964.4,1963.9,1.27297723]
[1772316601510,0.002,1964.4,1964.0,0.49286185]
[1772316601716,0.002,1964.6,1964.4,0.49286185]
[1772316602031,0.002,1964.8,1964.4,0.49286185]
[1772316603547,0.002,1964.8,1964.6,0.49286185]
[1772316603727,0.460076,1965.7,1964.8,0.49286185]
[1772316604423,0.460076,1965.7,1964.7,1.91186185]
[1772316605023,0.002,1964.8,1964.7,1.91186185]
[1772316605328,0.460076,1965.4,1964.8,0.49286185]
[1772316605529,0.002,1965.0,1964.9,1.27232938]
[1772316606333,0.002,1965.0,1964.8,1.76521092]
[1772316606533,0.002,1965.0,1964.7,2.69141861]
[1772316607250,0.460076,1965.5,1964.8,0.49286185]
[1772316607746,0.460076,1965.4,1964.6,0.49286185]
[1772316607950,0.460076,1965.4,1964.6,1.76533881]
[1772316608148,0.460076,1965.4,1964.7,0.49286185]
[1772316608850,1.27187627,1965.6,1964.7,0.49286185]
[1772316609022,1.73195227,1965.6,1964.7,0.49286185]
[1772316609225,0.460076,1965.5,1964.7,0.49286185]
[1772316609724,0.460076,1965.3,1964.2,0.49286185]
[1772316609924,0.460076,1965.1,1964.2,1.76564304]
[1772316611222,0.460076,1965.1,1964.2,1.27278119]
[1772316611936,0.460076,1964.9,1964.1,0.001]
[1772316612132,0.460076,1964.6,1964.1,0.001]
[1772316612350,1.634076,1964.6,1964.1,1.27383854]
[1772316612924,1.174,1964.8,1964.2,0.49286185]
[1772316613435,1.634076,1964.8,1964.2,0.49286185]
[1772316614451,1.634076,1964.8,1964.1,1.27383854]
[1772316614452,0.460076,1964.7,1964.1,0.001]
[1772316616554,0.45378245,1964.5,1964.1,0.001]
[1772316617135,0.45378245,1964.5,1964.3,0.001]
[1772316619156,1.72643218,1964.5,1964.3,0.001]
[1772316620562,0.45378245,1964.5,1964.3,0.001]
[1772316621157,1.177,1964.4,1964.3,0.001]
[1772316621333,0.45378245,1964.5,1964.3,0.001]
[1772316621533,1.177,1964.4,1964.3,0.001]
[1772316622253,0.45578245,1964.7,1964.3,0.001]
[1772316622455,1.63278245,1964.7,1964.3,0.001]
[1772316623262,1.63278245,1964.7,1964.3,1.27371801]
[1772316623862,1.63278245,1964.7,1964.3,0.001]
[1772316625960,1.179,1964.7,1964.4,0.49928191]
[1772316626142,1.179,1964.7,1964.3,0.001]
[1772316626343,0.45378245,1964.6,1964.3,0.001]
[1772316627947,1.72632539,1964.6,1964.3,0.001]
[1772316628266,0.45378245,1964.5,1964.3,0.001]
[1772316628832,2.90728826,1964.7,1964.3,0.001]
[1772316629076,0.45378245,1964.6,1964.3,0.001]
[1772316630437,1.72630703,1964.6,1964.3,0.001]
[1772316635167,0.45378245,1964.5,1964.3,0.001]
[1772316636479,0.45378245,1964.3,1963.5,0.001]
[1772316636944,0.45378245,1964.1,1963.5,0.001]
[1772316637149,0.45378245,1963.9,1963.5,0.001]
[1772316639454,0.45378245,1963.7,1963.5,0.001]
[1772316640452,0.45378245,1963.7,1963.3,0.001]
[1772316640776,0.45378245,1963.5,1963.1,0.001]
[1772316642878,1.72650046,1964.3,1963.2,0.49928191]
[1772316643183,0.002,1964.5,1963.5,0.50028191]
[1772316643184,1.187,1964.4,1963.5,0.50028191]
[1772316643382,1.187,1964.4,1963.8,0.49928191]
[1772316643587,0.002,1964.5,1963.8,0.49928191]
[1772316643789,0.002,1964.5,1963.9,1.77225914]
[1772316643985,0.002,1964.5,1964.0,0.49928191]
[1772316646489,0.002,1964.5,1964.0,1.77217609]
[1772316650087,1.76235584,1964.5,1964.0,0.49928191]
[1772316650291,0.4877647,1964.4,1963.8,1.76180268]
[1772316651482,0.002,1964.5,1964.0,0.48880731]
[1772316651783,1.189,1964.5,1964.0,0.48880731]
[1772316652186,0.002,1964.5,1964.1,1.76165492]
[1772316654291,0.002,1964.5,1963.9,0.48880731]
[1772316654292,0.4877647,1964.4,1963.9,0.48880731]
[1772316654493,0.002,1964.5,1963.9,0.48880731]
[1772316654693,1.188,1964.5,1963.9,0.48880731]
[1772316655280,0.002,1964.5,1963.9,0.48880731]
[1772316655998,0.002,1964.4,1963.9,0.48880731]
[1772316656497,0.002,1964.4,1964.1,0.48880731]
[1772316656793,0.002,1964.5,1964.1,0.48880731]
[1772316658593,0.002,1964.5,1964.0,3.08878541]
[1772316658594,0.002,1964.5,1964.0,1.27288703]
[1772316658794,0.002,1964.5,1964.1,0.48880731]
[1772316660697,0.4877647,1964.4,1963.7,0.48880731]
[1772316660899,0.4877647,1964.4,1963.7,1.7618731]
[1772316661367,1.184,1964.3,1963.5,5.58265953]
[1772316661575,0.4877647,1964.2,1963.5,0.001]
[1772316662184,0.4877647,1964.0,1963.5,0.001]
[1772316662802,0.4877647,1963.8,1963.4,0.001]
[1772316664927,0.4877647,1964.0,1963.4,0.48980731]
[1772316665091,1.6717647,1964.0,1963.4,0.48980731]
[1772316665416,1.184,1964.0,1963.4,0.48980731]
[1772316665702,0.4877647,1963.9,1963.4,0.48980731]
[1772316667414,0.4877647,1963.9,1963.4,0.001]
[1772316667723,0.4877647,1964.1,1963.4,0.48980731]
[1772316668081,0.4877647,1964.1,1963.5,0.48980731]
[1772316668504,0.4897647,1964.1,1963.5,0.48980731]
[1772316669802,0.002,1964.1,1963.7,0.48880731]
[1772316670605,0.4897647,1964.1,1963.6,1.27317172]
[1772316670808,0.4877647,1964.0,1963.5,1.7629947]
[1772316671596,0.4877647,1964.0,1963.5,0.48980731]
[1772316671789,0.4877647,1964.0,1963.5,0.001]
[1772316671999,1.27297723,1963.9,1963.5,0.001]
[1772316672202,0.4877647,1963.8,1963.5,0.001]
[1772316675585,1.6727647,1963.8,1963.5,0.001]
[1772316675909,0.4877647,1964.0,1963.5,0.001]
[1772316676207,0.4877647,1963.7,1963.3,0.001]
[1772316676593,1.76089361,1963.7,1963.3,0.001]
[1772316677195,0.46314025,1963.6,1963.3,0.001]
[1772316678617,1.27312891,1963.7,1963.3,0.001]
[1772316678618,1.186,1963.8,1963.4,1.27330141]
[1772316679315,0.46314025,1963.7,1963.3,0.001]
[1772316679809,2.45905163,1963.8,1963.3,1.75323648]
[1772316679810,1.186,1963.8,1963.3,1.75323648]
[1772316680107,0.46314025,1963.8,1963.3,1.75323648]
[1772316680308,5.09343198,1964.1,1963.4,0.47887462]
[1772316680309,1.27489463,1964.1,1963.4,0.47887462]
[1772316680516,1.187,1964.0,1963.4,0.47887462]
[1772316681018,1.187,1964.0,1963.6,0.47887462]
[1772316682894,0.002,1964.1,1963.7,0.47887462]
[1772316683096,0.002,1964.4,1963.8,1.81587299]
[1772316683519,0.002,1964.4,1964.0,1.81587299]
[1772316683815,0.002,1964.4,1964.1,0.47887462]
[1772316684018,0.002,1964.6,1963.6,2.68512824]
[1772316684019,0.002,1964.6,1964.3,0.47887462]
[1772316685018,0.002,1964.6,1964.5,0.47887462]
[1772316686209,0.002,1964.8,1964.5,0.47887462]
[1772316686210,1e-08,1964.8,1964.5,0.47887462]
[1772316687009,1e-08,1964.8,1964.4,1.27264518]
[1772316687525,1e-08,1964.8,1964.3,0.47887462]
[1772316687724,0.46314026,1964.8,1964.2,1.27277995]
[1772316687928,0.46314026,1964.8,1964.2,1.75165457]
[1772316688831,1e-08,1964.8,1964.3,0.47887462]
[1772316689036,1e-08,1964.8,1964.3,1.75154027]
[1772316689535,0.46314026,1964.8,1964.1,1.75169009]
[1772316689753,0.46314026,1964.8,1964.1,0.47887462]
[1772316690049,5.09106475,1965.0,1963.9,6.36568273]
[1772316690050,0.05098557,1965.8,1963.9,2.54692798]
[1772316690206,0.46314025,1965.5,1964.6,0.47887462]
[1772316690719,0.46314025,1965.3,1964.6,0.47887462]
[1772316692406,0.002,1964.7,1964.6,1.75139828]
[1772316692607,1.64814025,1965.3,1964.6,1.75139828]
[1772316692915,0.002,1964.8,1964.6,1.75139828]
[1772316693310,1.32273655,1965.8,1964.8,0.47887462]
[1772316693539,1.7858768,1965.8,1964.9,0.47887462]
[1772316694130,0.46314025,1965.7,1964.9,0.47887462]
[1772316694634,1.27187627,1965.6,1965.0,1.27226463]
[1772316694808,1.73500179,1965.7,1965.0,1.27226463]
[1772316696213,0.46314025,1965.6,1964.9,0.47887462]
[1772316696407,0.46314025,1965.6,1964.9,1.75119535]
[1772316696603,0.46314025,1965.4,1964.3,0.54441062]
[1772316696833,0.46314025,1965.1,1964.3,1.75158408]
[1772316697128,1.65014025,1965.1,1964.3,1.75158408]
[1772316697330,0.46314025,1965.0,1964.3,1.75158408]
[1772316698752,0.46314025,1964.9,1963.8,0.47887462]
[1772316698930,0.46314025,1964.7,1963.8,0.47887462]
[1772316700420,1.64914025,1964.7,1963.8,0.47887462]
[1772316700936,1.27252366,1964.6,1963.9,1.27297723]
[1772316701723,1.27252366,1964.6,1963.8,1.75186938]
[1772316702711,1.73566391,1964.6,1963.9,0.47887462]
[1772316703242,1.73566391,1964.6,1963.9,1.75183421]
[1772316704825,1.73566391,1964.6,1964.0,0.001]
[1772316705227,0.47094994,1964.5,1964.0,0.001]
[1772316706136,1.65594994,1964.5,1964.0,0.001]
[1772316706438,1.65594994,1964.5,1963.9,0.001]
[1772316706439,0.48644687,1964.4,1963.9,0.001]
[1772316706643,0.48644687,1964.4,1963.4,0.001]
[1772316707634,0.48644687,1964.2,1963.4,0.001]
[1772316708427,0.48644687,1964.1,1963.4,0.001]
[1772316708739,0.48644687,1963.9,1963.4,0.001]
[1772316708939,0.48644687,1964.1,1963.4,0.45949137]
[1772316709139,1.185,1963.9,1963.4,0.45949137]
[1772316709838,1.185,1963.9,1963.4,1.73278074]
[1772316710143,1.185,1963.9,1963.4,0.45949137]
[1772316710144,2.45798295,1963.9,1963.4,0.45949137]
[1772316711140,1.27295719,1964.0,1963.4,1.73277179]
[1772316711340,2.45895719,1964.0,1963.4,1.73277179]
[1772316711543,0.48644687,1963.9,1963.4,1.27428042]
[1772316711948,1.75945523,1963.9,1963.4,0.001]
[1772316712844,0.48644687,1963.9,1963.4,1.27429473]
[1772316713244,1.27291312,1964.0,1963.5,0.45849137]
[1772316713449,1.186,1964.2,1963.5,0.45849137]
[1772316714320,2.45879105,1964.2,1963.6,1.73166309]
[1772316715039,1.27279105,1964.2,1963.6,1.73166309]
[1772316715234,2.45879105,1964.2,1963.6,1.73166309]
[1772316715444,1.27279105,1964.2,1963.6,1.73166309]
[1772316715652,5.57722651,1964.4,1963.7,0.45849137]
[1772316715653,1.75914407,1964.4,1963.7,0.45849137]
[1772316715952,2.94514407,1964.4,1963.7,0.45849137]
[1772316717126,2.94514407,1964.4,1963.8,1.27304206]
[1772316717851,1.67244687,1964.4,1963.8,1.73153343]
[1772316718026,0.002,1964.3,1963.8,1.73153343]
[1772316719354,0.002,1964.3,1963.9,0.45849137]
[1772316720832,0.002,1964.6,1964.0,0.45849137]
[1772316721068,2.94377219,1965.0,1964.0,0.45849137]
[1772316721235,1.67144687,1965.0,1964.2,0.45849137]
[1772316721436,1.76061733,1965.2,1964.2,0.45849137]
[1772316721636,2.94561733,1965.2,1964.2,0.45849137]
[1772316722256,0.48644687,1965.1,1964.2,0.45849137]
[1772316723265,1.27226463,1965.0,1964.2,0.45849137]
[1772316723463,0.48644687,1964.9,1964.2,1.73126517]
[1772316724237,1.67044687,1964.9,1964.3,0.45849137]
[1772316725667,0.48644687,1964.8,1963.9,6.50587685]
[1772316725830,0.48644687,1964.8,1964.0,0.45849137]
[1772316726591,1.185,1965.2,1964.2,0.45849137]
[1772316726731,1.185,1965.2,1964.5,0.45849137]
[1772316727060,0.002,1965.2,1964.5,0.45849137]
[1772316727869,0.002,1965.2,1964.7,0.45849137]
[1772316728179,0.002,1965.3,1964.9,0.45849137]
[1772316729948,0.002,1965.3,1964.9,1.7307744]
[1772316730276,0.002,1965.1,1965.0,0.45849137]
[1772316731240,0.002,1965.4,1965.1,0.45849137]
[1772316731463,0.07639916,1965.7,1965.2,0.45849137]
[1772316732039,0.07639916,1965.7,1965.3,0.45849137]
[1772316732235,0.07639916,1965.7,1965.1,0.45849137]
[1772316732236,1.34821739,1965.7,1965.1,0.45849137]
[1772316732445,0.07639916,1965.7,1965.2,0.45849137]
[1772316733865,1.34821387,1965.7,1965.2,0.45849137]
[1772316735869,0.48644687,1965.6,1965.0,1.73071603]
[1772316736175,0.48644687,1965.6,1965.1,0.45849137]
[1772316736752,0.45062347,1965.5,1965.0,1.27222466]
[1772316737639,0.45062347,1965.5,1965.0,1.75899284]
[1772316738041,0.45062347,1965.5,1965.0,0.48676818]
[1772316738238,0.45062347,1965.5,1964.8,0.48676818]
[1772316738672,1.27200569,1965.4,1964.6,1.27252366]
[1772316738974,5.16367569,1965.7,1965.1,0.48676818]
[1772316738975,0.07639916,1965.7,1965.1,0.48676818]
[1772316740876,0.07639916,1965.7,1965.3,0.48676818]
[1772316742875,0.52702263,1965.7,1965.2,0.48676818]
[1772316743079,0.002,1965.6,1965.2,0.48676818]
[1772316743449,1.27166478,1966.0,1965.3,0.48676818]
[1772316743650,0.002,1965.7,1965.3,0.48676818]
[1772316744452,0.45262347,1965.7,1965.1,0.48776818]
[1772316745681,0.002,1965.7,1965.2,0.48676818]
[1772316746063,0.45262347,1965.7,1965.2,0.48676818]
[1772316746747,0.002,1965.7,1965.2,0.48676818]
[1772316748586,0.002,1965.7,1965.3,1.7588386]
[1772316748964,0.45262347,1965.7,1965.1,1.7599598]
[1772316750088,0.45262347,1965.7,1965.2,0.48676818]
[1772316750389,0.45262347,1965.7,1965.1,0.001]
[1772316750686,0.45062347,1965.5,1965.1,0.001]
[1772316751787,0.45062347,1965.4,1964.8,0.001]
[1772316752287,0.45062347,1965.2,1964.8,0.001]
[1772316752674,0.45062347,1965.0,1964.3,0.48676818]
[1772316752884,0.45062347,1964.9,1964.2,1.27274282]
[1772316753285,0.45062347,1964.9,1964.1,0.48676818]
[1772316753593,1.62862347,1964.8,1964.1,1.75960535]
[1772316754095,0.45062347,1964.7,1964.1,1.75960535]
[1772316755068,1.72308956,1964.7,1964.1,1.75960535]
[1772316756296,1.72308956,1964.7,1964.1,0.48676818]